fUSD/lending_fUSD_20251003
["ID","MTS","AMOUNT","RATE_DAILY","PERIOD"]
[388875796,1759455047438,-646.65982734,0.0002067,2]
[388875797,1759455047449,-179.74755056,0.0002067,2]
[388875798,1759455047459,-248.71531821,0.0002067,2]
[388875799,1759455047468,-577.78988303,0.00020707,2]
[388875800,1759455047477,-1292.03,0.00020729,2]
[388875801,1759455047487,-1286.87,0.00020729,2]
[388875802,1759455047496,-204.0,0.00020765,2]
[388875803,1759455047506,-619.92039534,0.00020778,2]
[388875804,1759455047515,-178.98738369,0.000208,2]
[388875805,1759455047524,-2000.0,0.000208,2]
[388875806,1759455047533,-700.0,0.000208,7]
[388875807,1759455047543,-600.0,0.00020822,2]
[388875808,1759455047551,-662.05090764,0.00020849,2]
[388875809,1759455047561,-525.9,0.000209,2]
[388875810,1759455047570,-215.87,0.000209,2]
[388875811,1759455047579,-33261.864,0.000209,2]
[388875812,1759455047588,-10341.4473,0.000209,2]
[388875813,1759455047597,-1100.0,0.000209,7]
[388875814,1759455047606,-7000.0,0.000209,2]
[388875815,1759455047616,-704.18141995,0.00020919,2]
[388875816,1759455047627,-500.0,0.00020973,2]
[388875817,1759455047638,-500.0,0.00020973,2]
[388875818,1759455047652,-500.0,0.00020973,2]
[388875819,1759455047662,-500.0,0.00020973,2]
[388875820,1759455047671,-500.0,0.00020973,2]
[388875821,1759455047680,-500.0,0.00020973,2]
[388875822,1759455047690,-547.38893992,0.00020973,2]
[388875823,1759455047699,-500.0,0.00020973,2]
[388875824,1759455047710,-150.0,0.00020973,2]
[388875825,1759455047720,-500.0,0.00020973,2]
[388875826,1759455047729,-500.0,0.00020973,2]
[388875827,1759455047738,-500.66514915,0.00020973,2]
[388875828,1759455047747,-500.0,0.00020973,2]
[388875829,1759455047756,-500.0,0.00020973,2]
[388875830,1759455047765,-500.0,0.00020973,2]
[388875831,1759455047774,-500.0,0.00020973,2]
[388875832,1759455047783,-500.0,0.00020973,2]
[388875834,1759455048122,-500.0,0.00020973,2]
[388875835,1759455048141,-500.0,0.00020973,2]
[388875836,1759455048151,-500.0,0.00020973,2]
[388875837,1759455048160,-150.74,0.00020976,2]
[388875838,1759455048169,-500.0,0.00020979,2]
[388875839,1759455048178,-1000.0,0.00020986,2]
[388875840,1759455048187,-150.74,0.00020988,2]
[388875841,1759455048196,-150.74,0.00020988,2]
[388875842,1759455048206,-150.74,0.00020988,2]
[388875843,1759455048216,-746.31193225,0.0002099,2]
[388875844,1759455048226,-150.74,0.0002099,2]
[388875845,1759455048236,-150.74,0.0002099,2]
[388875846,1759455048246,-150.74,0.0002099,2]
[388875847,1759455048255,-150.74,0.0002099,2]
[388875848,1759455048264,-385919.2841494,0.00020998,2]
[388875849,1759455048274,-150.0868528,0.00020998,2]
[388875850,1759455048283,-16832.3237393,0.00020998,2]
[388875851,1759455048293,-15920.03312038,0.00020998,2]
[388875852,1759455048306,-1702.46574952,0.00020998,2]
[388875853,1759455048315,-61416.4279319,0.00020998,2]
[388875854,1759455048324,-4375.5379801,0.00020998,2]
[388875855,1759455048334,-22991.96945049,0.00020998,2]
[388875856,1759455048345,-1551.92822301,0.00020998,2]
[388875857,1759455048355,-863.6907487,0.00020998,2]
[388875858,1759455048364,-890.75495,0.00020998,2]
[388875859,1759455048373,-318428.92790674,0.00021,2]
[388875860,1759455048384,-68747.94214512,0.00021,2]
[388875861,1759455048393,-625.05928038,0.00021,2]
[388875862,1759455048402,-182535.20046299,0.00021,2]
[388875863,1759455048411,-400.0,0.00021,2]
[388875864,1759455048420,-400.0,0.00021,2]
[388875865,1759455048429,-400.0,0.00021,2]
[388875866,1759455048438,-400.0,0.00021,2]
[388875867,1759455048448,-400.0,0.00021,2]
[388875868,1759455048457,-400.0,0.00021,2]
[388875869,1759455048467,-400.0,0.00021,2]
[388875870,1759455048476,-400.0,0.00021,2]
[388875871,1759455048485,-400.0,0.00021,2]
[388875872,1759455048494,-400.0,0.00021,2]
[388875873,1759455048503,-400.0,0.00021,2]
[388875874,1759455048512,-400.0,0.00021,2]
[388875875,1759455048521,-400.0,0.00021,2]
[388875876,1759455048531,-400.0,0.00021,2]
[388875877,1759455048540,-400.0,0.00021,2]
[388875878,1759455048550,-400.0,0.00021,2]
[388875879,1759455048559,-400.0,0.00021,2]
[388875880,1759455048568,-400.0,0.00021,2]
[388875881,1759455048577,-400.0,0.00021,2]
[388875882,1759455048587,-400.0,0.00021,2]
[388875883,1759455048596,-334.66497094,0.00021,2]
[388875884,1759455048607,-200.0,0.00021,2]
[388875885,1759455048616,-424.34467404,0.00021,2]
[388875886,1759455048626,-1071.04493,0.00021,2]
[388875887,1759455048635,-2393.68,0.00021068,2]
[388875888,1759455048651,-150.0,0.00021068,2]
[388875889,1759455048660,-354.21,0.00021068,2]
[388875890,1759455048669,-1088.38,0.00021068,2]
[388875891,1759455048679,-335.56,0.00021068,2]
[388875892,1759455048688,-11520.91,0.000211,2]
[388875893,1759455048698,-151.0,0.000211,2]
[388875894,1759455048707,-151.0,0.000211,2]
[388875895,1759455048716,-151.0,0.000211,2]
[388875896,1759455048725,-151.0,0.000211,2]
[388875897,1759455048735,-151.0,0.000211,2]
[388875898,1759455048744,-151.0,0.000211,2]
[388875899,1759455048754,-446.27404292,0.00021115,2]
[388875900,1759455048763,-11871.8055545,0.00021151,2]
[388875901,1759455048773,-165.71,0.00021178,2]
[388875902,1759455048782,-1071.04493,0.0002119,2]
[388875903,1759455048793,-250.0,0.00021199,2]
[388875904,1759455048802,-200.0,0.0002121,2]
[388875905,1759455048812,-487.92628692,0.0002124,2]
[388875906,1759455048821,-807.15,0.00021246,2]
[388875907,1759455048831,-204.0,0.0002131,2]
[388875908,1759455048840,-204.0,0.00021318,2]
[388875909,1759455048850,-204.0,0.00021334,2]
[388875910,1759455048859,-529.57853093,0.00021365,2]
[388875911,1759455048868,-1260.0,0.00021388,2]
[388875912,1759455048878,-200.0,0.00021422,2]
[388875913,1759455048887,-1567.0,0.00021422,2]
[388875914,1759455048896,-571.23077493,0.0002149,2]
[388875915,1759455048905,-204.0,0.00021505,2]
[388875916,1759455048915,-204.0,0.00021514,2]
[388875917,1759455048924,-1000.0,0.00021521,2]
[388875918,1759455048933,-1000.0,0.00021521,2]
[388875919,1759455048942,-500.62436708,0.00021521,2]
[388875920,1759455048952,-1000.0,0.00021521,2]
[388875921,1759455048961,-485.15897709,0.00021521,2]
[388875922,1759455048970,-766.46551295,0.00021521,2]
[388875923,1759455048979,-250.0,0.00021521,2]
[388875924,1759455048989,-1000.0,0.00021521,2]
[388875925,1759455048999,-830.53121236,0.00021521,2]
[388875926,1759455049008,-1000.0,0.00021521,2]
[388875927,1759455049017,-1000.0,0.00021521,2]
[388875928,1759455049027,-1000.0,0.00021521,2]
[388875929,1759455049036,-1000.0,0.00021521,2]
[388875930,1759455049046,-1000.0,0.00021521,2]
[388875931,1759455049055,-1000.0,0.00021521,2]
[388875932,1759455049065,-1000.0,0.00021521,2]
[388875933,1759455049074,-1000.0,0.00021521,2]
[388875934,1759455049083,-562.22385812,0.00021527,2]
[388875935,1759455049093,-17319.94402452,0.0002153,2]
[388875936,1759455049103,-217.07410389,0.00021534,2]
[388875937,1759455049112,-492.39697462,0.00021538,2]
[388875938,1759455049121,-2404.38275835,0.00021538,2]
[388875940,1759455051824,-1925.60324779,0.00021538,2]
[388875941,1759455051834,-607.25629766,0.0002154,2]
[388875942,1759455051843,-467.96587816,0.00021541,2]
[388875943,1759455051852,-204.0,0.00021546,2]
[388875944,1759455051861,-492.39697462,0.00021548,2]
[388875945,1759455051871,-206.91875936,0.00021552,2]
[388875946,1759455051881,-562.22385812,0.00021552,2]
[388875947,1759455051891,-467.96587816,0.00021559,2]
[388875948,1759455051901,-206.91875936,0.0002156,2]
[388875949,1759455051911,-607.25629766,0.00021563,2]
[388875950,1759455051922,-4329.98600614,0.00021564,2]
[388875951,1759455051933,-607.25629766,0.00021565,2]
[388875952,1759455051942,-3222.11053311,0.00021572,2]
[388875953,1759455051952,-562.22385812,0.00021573,2]
[388875954,1759455051962,-1751.24375328,0.00021576,2]
[388875955,1759455051971,-168.14178623,0.00021579,2]
[388875956,1759455051981,-562.22385812,0.0002158,2]
[388875957,1759455051991,-17319.94402452,0.0002158,2]
[388875958,1759455052000,-3222.11053311,0.00021581,2]
[388875959,1759455052010,-4329.98600614,0.00021593,2]
[388875960,1759455052019,-1662.48595309,0.00021593,2]
[388875961,1759455052029,-206.91875936,0.00021594,2]
[388875962,1759455052038,-467.96587816,0.00021597,2]
[388875963,1759455052048,-200.0,0.000216,2]
[388875964,1759455052059,-3222.11053311,0.00021601,2]
[388875965,1759455052069,-1675.25362667,0.00021601,2]
[388875966,1759455052148,-1203.09476344,0.00021601,2]
[388875967,1759455052159,-267.7820447,0.00021601,2]
[388875968,1759455052257,-75.9800983,0.00021601,2]
[388875969,1759455052267,-175.81998544,0.00021606,2]
[388875976,1759455140577,224.33,0.00010312,2]
[388875977,1759455140795,224.33,0.00010855,2]
[388875978,1759455140875,224.33,0.00011398,2]
[388875979,1759455141024,224.33,0.00011941,2]
[388875980,1759455141213,224.33,0.00012484,2]
[388875981,1759455141585,224.33,0.00013026,2]
[388875982,1759455141878,224.33,0.00013569,2]
[388875983,1759455142108,224.33,0.00014112,2]
[388875984,1759455142936,224.33,0.00014655,2]
[388875985,1759455143216,224.33,0.00015197,2]
[388875986,1759455143454,224.33,0.0001574,2]
[388875987,1759455143887,224.33,0.00016283,2]
[388875988,1759455179971,156.13,0.00016135,2]
[388875989,1759455188317,157.0,0.00030137,120]
[388875994,1759455255419,500.0,0.00030137,120]
[388875995,1759455271331,269.0,0.00030137,120]
[388876028,1759455321975,166.0,0.00030137,120]
[388876032,1759455369516,1000.0,0.00016438,2]
[388876036,1759455550037,1788.93378,7.945e-05,2]
[388876037,1759455555340,55000.0,0.00030136,120]
[388876098,1759455575767,427.6898741,0.0003013,120]
[388876100,1759455584331,153.0,0.00030137,120]
[388876108,1759455739963,1395.969934,0.00030137,120]
[388876129,1759455886199,167.9,0.00030137,120]
[388876130,1759455903363,526.58647905,0.0003,120]
[388876133,1759456204481,857.9,0.00030136,120]
[388876140,1759456232383,-224.33,0.00016826,2]
[388876141,1759456232393,-254.18269164,0.00016827,2]
[388876142,1759456232402,-195.0,0.00016828,2]
[388876143,1759456232411,-2000.0,0.00016828,2]
[388876144,1759456232420,-2500.0,0.0001683,2]
[388876145,1759456232429,-300.0,0.00016834,2]
[388876146,1759456232439,-1200.0,0.00016838,2]
[388876147,1759456232448,-2046.38695933,0.00016839,2]
[388876148,1759456232458,-2500.0,0.00016854,2]
[388876149,1759456232467,-1209.26150321,0.00016854,2]
[388876150,1759456232476,-1500.0,0.00017002,2]
[388876151,1759456232486,-5912.97454051,0.00017076,2]
[388876152,1759456232496,-530.80939532,0.00017348,2]
[388876153,1759456232506,-224.33,0.00017368,2]
[388876154,1759456232515,-224.33,0.00017911,2]
[388876155,1759456232525,-1500.0,0.00018372,2]
[388876156,1759456232534,-224.33,0.00018454,2]
[388876157,1759456232543,-1600.54,0.00018454,2]
[388876158,1759456232553,-1680.0,0.00018486,2]
[388876159,1759456232563,-850.0,0.00018496,2]
[388876160,1759456232572,-200.0,0.00018497,2]
[388876161,1759456232581,-201.73544614,0.00018497,2]
[388876162,1759456232591,-151.0,0.00018497,2]
[388876163,1759456232601,-151.0,0.00018497,2]
[388876164,1759456232610,-151.0,0.00018497,2]
[388876165,1759456232619,-151.0,0.00018497,2]
[388876166,1759456232628,-263.02037084,0.00018497,2]
[388876167,1759456232638,-151.0,0.00018497,2]
[388876168,1759456232647,-151.0,0.00018497,2]
[388876169,1759456232656,-151.0,0.00018497,2]
[388876170,1759456232666,-151.0,0.00018497,2]
[388876171,1759456232675,-200.0,0.00018497,2]
[388876172,1759456232684,-151.0,0.00018497,2]
[388876173,1759456232693,-159.29312959,0.00018497,2]
[388876174,1759456232703,-151.0,0.00018497,2]
[388876175,1759456232713,-300.0,0.00018508,2]
[388876176,1759456232723,-150.0,0.00018508,2]
[388876177,1759456232732,-2500.0,0.00018508,2]
[388876178,1759456232741,-392.34203041,0.00018508,2]
[388876179,1759456232751,-195.35439064,0.00018508,2]
[388876180,1759456232760,-195.0,0.00018508,2]
[388876181,1759456232769,-2000.0,0.00018508,2]
[388876182,1759456232778,-300.44957732,0.00018508,2]
[388876183,1759456232788,-250.0,0.00018508,2]
[388876184,1759456232797,-224.33,0.00018997,2]
[388876185,1759456232806,-201.7087786,0.00019045,2]
[388876186,1759456232815,-191.31814289,0.000191,2]
[388876187,1759456232826,-228.388731,0.000191,2]
[388876188,1759456232836,-250.0,0.00019123,2]
[388876189,1759456232845,-191.31814289,0.000193,2]
[388876190,1759456232855,-228.388731,0.000193,2]
[388876191,1759456232865,-696.75983625,0.0001935,7]
[388876192,1759456232874,-1024.95,0.00019375,2]
[388876193,1759456232883,-228.388731,0.000195,2]
[388876194,1759456232892,-300.91,0.00019514,2]
[388876195,1759456232903,-224.33,0.0001954,2]
[388876196,1759456232913,-9830.23,0.00019552,2]
[388876197,1759456232924,-215.0,0.00019569,2]
[388876198,1759456232934,-154.67,0.0001959,2]
[388876199,1759456232943,-228.388731,0.000197,2]
[388876200,1759456232955,-1500.0,0.00019742,2]
[388876201,1759456232964,-200.0,0.00019764,2]
[388876202,1759456232974,-228.388731,0.000199,2]
[388876203,1759456232983,-3410.753,0.00019974,2]
[388876204,1759456232993,-1273.12,0.00019974,2]
[388876205,1759456233003,-2045.0,0.00019974,2]
[388876206,1759456233012,-605.637,0.00019974,2]
[388876207,1759456233022,-570.0,0.00019974,2]
[388876208,1759456233031,-1307.0,0.00019974,2]
[388876209,1759456233041,-1585.0,0.00019974,2]
[388876210,1759456233050,-1181.0,0.00019974,2]
[388876211,1759456233061,-4249.0,0.00019974,2]
[388876212,1759456233071,-817.0,0.00019974,2]
[388876213,1759456233080,-6236.0,0.00019974,2]
[388876214,1759456233090,-623.948,0.00019974,2]
[388876215,1759456233100,-4134.267,0.00019974,2]
[388876216,1759456233109,-300.48,0.00019992,2]
[388876217,1759456233118,-300.84,0.00019992,2]
[388876218,1759456233128,-345.34690362,0.0002,2]
[388876219,1759456233137,-224.33,0.00020082,2]
[388876220,1759456233147,-150.0,0.0002024,2]
[388876221,1759456233157,-1076.0,0.00020294,2]
[388876222,1759456233166,-196.93174578,0.00020365,2]
[388876223,1759456233175,-497.17020799,0.00020448,2]
[388876224,1759456233185,-322.6107,0.00020448,2]
[388876225,1759456233194,-227.12640685,0.00020448,2]
[388876226,1759456233204,-248.71531821,0.00020448,2]
[388876227,1759456233213,-238.7051464,0.0002049,2]
[388876228,1759456233222,-2000.0,0.000205,2]
[388876229,1759456233232,-168.0,0.00020593,2]
[388876230,1759456233241,-280.47854702,0.00020615,2]
[388876231,1759456233251,-224.33,0.00020625,2]
[388876232,1759456233260,-322.25194764,0.0002074,2]
[388876233,1759456233270,-423.47135878,0.00020796,2]
[388876234,1759456233279,-168.0,0.00020843,2]
[388876235,1759456233289,-168.0,0.00020851,2]
[388876236,1759456233298,-168.0,0.00020857,2]
[388876237,1759456233307,-364.02534826,0.00020865,2]
[388876238,1759456233317,-220.64,0.000209,2]
[388876239,1759456233328,-405.79874888,0.0002099,2]
[388876240,1759456233337,-2000.0,0.00021,2]
[388876241,1759456233346,-2000.0,0.00021,2]
[388876242,1759456233356,-2000.0,0.00021,2]
[388876243,1759456233365,-2000.0,0.00021,2]
[388876244,1759456233375,-2000.0,0.00021,2]
[388876245,1759456233384,-1065.747,0.00021,2]
[388876246,1759456233393,-254.316,0.00021,2]
[388876247,1759456233402,-320.796,0.00021,2]
[388876248,1759456233412,-168.0,0.00021018,2]
[388876249,1759456233422,-2465.38225393,0.00021019,2]
[388876250,1759456233431,-168.0,0.00021072,2]
[388876251,1759456233440,-1500.0,0.00021112,2]
[388876252,1759456233450,-447.5721495,0.00021115,2]
[388876253,1759456233459,-1000.0,0.00021115,2]
[388876254,1759456233468,-1000.0,0.00021115,2]
[388876255,1759456233478,-1000.0,0.00021115,2]
[388876256,1759456233488,-1000.0,0.00021115,2]
[388876257,1759456233497,-1000.0,0.00021115,2]
[388876258,1759456233507,-1000.0,0.00021115,2]
[388876259,1759456233516,-1000.0,0.00021115,2]
[388876260,1759456233525,-1000.0,0.00021115,2]
[388876261,1759456233535,-1000.0,0.00021115,2]
[388876262,1759456233544,-1000.0,0.00021115,2]
[388876263,1759456233553,-1000.0,0.00021115,2]
[388876264,1759456233562,-1000.0,0.00021115,2]
[388876265,1759456233572,-1000.0,0.00021115,2]
[388876266,1759456233581,-1000.0,0.00021115,2]
[388876267,1759456233590,-1000.0,0.00021115,2]
[388876268,1759456233599,-1000.0,0.00021115,2]
[388876269,1759456233608,-1037.0,0.00021115,2]
[388876270,1759456233617,-168.0,0.00021119,2]
[388876271,1759456233626,-168.0,0.00021132,2]
[388876272,1759456233635,-489.34555012,0.0002124,2]
[388876273,1759456233644,-1196.84,0.0002125,2]
[388876274,1759456233654,-351.06,0.0002125,2]
[388876275,1759456233663,-301.29,0.0002125,2]
[388876276,1759456233673,-825.11,0.0002125,2]
[388876277,1759456233682,-274.0,0.00021291,2]
[388876278,1759456233692,-531.11895074,0.00021365,2]
[388876279,1759456233702,-274.0,0.0002144,2]
[388876280,1759456233712,-572.89235136,0.0002149,2]
[388876281,1759456233721,-986.68,0.000215,2]
[388876282,1759456233731,-3601.87653302,0.00021502,2]
[388876283,1759456233741,-601.77268991,0.00021543,2]
[388876284,1759456233750,-638.18102773,0.0002155,2]
[388876285,1759456233760,-200.0,0.000216,7]
[388876286,1759456233770,-202.67,0.000216,2]
[388876287,1759456233780,-1000.0,0.00021602,2]
[388876288,1759456233789,-1000.0,0.00021602,2]
[388876289,1759456233799,-1000.0,0.00021602,2]
[388876290,1759456233809,-1000.0,0.00021602,2]
[388876291,1759456233819,-1000.0,0.00021602,2]
[388876292,1759456233828,-1000.0,0.00021602,2]
[388876293,1759456233838,-1000.0,0.00021602,2]
[388876294,1759456233848,-1000.0,0.00021602,2]
[388876295,1759456233858,-1000.0,0.00021602,2]
[388876296,1759456233868,-1000.0,0.00021602,2]
[388876297,1759456233879,-1000.0,0.00021602,2]
[388876298,1759456233888,-1000.0,0.00021602,2]
[388876299,1759456233897,-1000.0,0.00021602,2]
[388876300,1759456233906,-1000.0,0.00021602,2]
[388876301,1759456233915,-1000.0,0.00021602,2]
[388876302,1759456233925,-1000.0,0.00021602,2]
[388876303,1759456233934,-1000.0,0.00021602,2]
[388876304,1759456233942,-1000.0,0.00021602,2]
[388876305,1759456233952,-1000.0,0.00021602,2]
[388876306,1759456233962,-1000.0,0.00021602,2]
[388876307,1759456233971,-1000.0,0.00021602,2]
[388876308,1759456233981,-1000.0,0.00021602,2]
[388876309,1759456233990,-1000.0,0.00021602,2]
[388876310,1759456233999,-1000.0,0.00021602,2]
[388876311,1759456234011,-1000.0,0.00021602,2]
[388876312,1759456234023,-1000.0,0.00021602,2]
[388876313,1759456234033,-1000.0,0.00021602,2]
[388876314,1759456234043,-1000.0,0.00021602,2]
[388876315,1759456234053,-1000.0,0.00021602,2]
[388876316,1759456234065,-1000.0,0.00021602,2]
[388876317,1759456234074,-1000.0,0.00021602,2]
[388876318,1759456234083,-1000.0,0.00021602,2]
[388876319,1759456234092,-1000.0,0.00021602,2]
[388876320,1759456234102,-1000.0,0.00021602,2]
[388876321,1759456234111,-1011.0,0.00021602,2]
[388876322,1759456234121,-446.38,0.00021602,2]
[388876323,1759456234130,-315.739,0.00021606,2]
[388876324,1759456234140,-427.579,0.00021606,2]
[388876325,1759456234149,-263.74871482,0.00021606,2]
[388876326,1759456234159,-722.45473,0.00021606,2]
[388876327,1759456234169,-17144.12403908,0.00021606,2]
[388876328,1759456234179,-217.07410389,0.00021606,2]
[388876329,1759456234191,-492.39697462,0.00021607,2]
[388876330,1759456234201,-206.91875936,0.00021611,2]
[388876331,1759456234212,-500.0,0.00021612,2]
[388876332,1759456234223,-193.5213102,0.00021612,2]
[388876333,1759456234233,-223.93249626,0.00021612,2]
[388876334,1759456234243,-258.14874823,0.00021612,2]
[388876335,1759456234253,-174.03595924,0.00021612,2]
[388876336,1759456234262,-595.97861341,0.00021612,2]
[388876337,1759456234272,-151.0,0.00021615,2]
[388876338,1759456234281,-153.495817,0.00021615,2]
[388876339,1759456234290,-151.0,0.00021615,2]
[388876340,1759456234300,-151.0,0.00021615,2]
[388876341,1759456234310,-151.0,0.00021615,2]
[388876342,1759456234319,-151.0,0.00021615,2]
[388876343,1759456234329,-151.0,0.00021615,2]
[388876344,1759456234339,-233.27247,0.00021615,2]
[388876345,1759456234348,-151.0,0.00021615,2]
[388876346,1759456234358,-151.0,0.00021615,2]
[388876347,1759456234367,-233.27247,0.00021615,2]
[388876348,1759456234376,-151.0,0.00021615,2]
[388876349,1759456234386,-233.27247,0.00021615,2]
[388876350,1759456234396,-151.0,0.00021615,2]
[388876351,1759456234405,-151.0,0.00021615,2]
[388876352,1759456234414,-151.0,0.00021615,2]
[388876353,1759456234424,-233.27247,0.00021615,2]
[388876354,1759456234433,-151.0,0.00021615,2]
[388876355,1759456234442,-187.437276,0.00021615,2]
[388876356,1759456234453,-151.0,0.00021615,2]
[388876357,1759456234462,-151.0,0.00021615,2]
[388876358,1759456234471,-151.0,0.00021615,2]
[388876359,1759456234480,-151.0,0.00021615,2]
[388876360,1759456234490,-265.133363,0.00021615,2]
[388876361,1759456234499,-151.0,0.00021615,2]
[388876362,1759456234509,-151.0,0.00021615,2]
[388876363,1759456234519,-151.0,0.00021615,2]
[388876364,1759456234529,-151.0,0.00021615,2]
[388876365,1759456234538,-151.0,0.00021615,2]
[388876366,1759456234548,-151.0,0.00021615,2]
[388876367,1759456234557,-151.0,0.00021615,2]
[388876368,1759456234566,-151.0,0.00021615,2]
[388876369,1759456234576,-151.0,0.00021615,2]
[388876370,1759456234585,-151.0,0.00021615,2]
[388876371,1759456234595,-151.0,0.00021615,2]
[388876372,1759456234604,-151.0,0.00021615,2]
[388876373,1759456234614,-151.0,0.00021615,2]
[388876374,1759456234623,-151.0,0.00021615,2]
[388876375,1759456234632,-151.0,0.00021615,2]
[388876376,1759456234645,-151.0,0.00021615,2]
[388876377,1759456234655,-151.0,0.00021615,2]
[388876378,1759456234664,-151.0,0.00021615,2]
[388876379,1759456234673,-151.0,0.00021615,2]
[388876380,1759456234683,-151.0,0.00021615,2]
[388876381,1759456234693,-614.66575198,0.00021615,2]
[388876382,1759456234703,-162.2153932,0.00021616,2]
[388876383,1759456234713,-168.14178623,0.00021618,2]
[388876384,1759456234722,-17319.94402452,0.00021621,2]
[388876385,1759456234732,-1662.48595309,0.00021621,2]
[388876386,1759456234742,-562.22385812,0.00021623,2]
[388876387,1759456234751,-1662.48595309,0.00021623,2]
[388876388,1759456234761,-638.18102773,0.00021624,2]
[388876389,1759456234770,-217.07410389,0.00021625,2]
[388876390,1759456234780,-1751.24375328,0.00021626,2]
[388876391,1759456234789,-17319.94402452,0.00021627,2]
[388876392,1759456234799,-1543.96520246,0.00021632,2]
[388876393,1759456234808,-607.25629766,0.00021636,2]
[388876394,1759456234818,-1662.48595309,0.00021636,2]
[388876395,1759456234827,-1543.96520246,0.00021639,2]
[388876396,1759456234837,-1751.24375328,0.00021639,2]
[388876397,1759456234846,-4329.98600614,0.0002164,2]
[388876398,1759456234855,-1000.0,0.00021643,5]
[388876399,1759456234865,-1000.0,0.00021643,5]
[388876400,1759456234874,-1000.0,0.00021643,5]
[388876401,1759456234885,-1000.0,0.00021643,5]
[388876402,1759456234894,-1000.0,0.00021643,5]
[388876403,1759456234904,-1000.0,0.00021643,5]
[388876404,1759456234914,-1000.0,0.00021643,5]
[388876405,1759456234923,-1000.0,0.00021643,5]
[388876406,1759456234933,-1000.0,0.00021643,5]
[388876407,1759456234942,-1000.0,0.00021643,5]
[388876408,1759456234953,-1000.0,0.00021643,5]
[388876409,1759456234964,-1000.0,0.00021643,5]
[388876410,1759456234973,-1000.0,0.00021643,5]
[388876411,1759456234984,-832.3776676,0.00021643,5]
[388876412,1759456234993,-467.96587816,0.00021646,2]
[388876413,1759456235003,-492.39697462,0.00021652,2]
[388876414,1759456235013,-1543.96520246,0.00021652,2]
[388876415,1759456235023,-206.91875936,0.00021653,2]
[388876416,1759456235032,-467.96587816,0.00021658,2]
[388876417,1759456235042,-1751.24375328,0.00021658,2]
[388876418,1759456235051,-638.18102773,0.00021664,2]
[388876419,1759456235065,-492.39697462,0.00021667,2]
[388876420,1759456235074,-1751.24375328,0.00021669,2]
[388876421,1759456235085,-1543.96520246,0.00021669,2]
[388876422,1759456235094,-3222.11053311,0.0002167,2]
[388876423,1759456235103,-217.07410389,0.0002167,2]
[388876424,1759456235113,-638.18102773,0.00021676,2]
[388876425,1759456235123,-4329.98600614,0.0002168,2]
[388876426,1759456235132,-607.25629766,0.00021683,2]
[388876427,1759456235143,-168.14178623,0.00021685,2]
[388876428,1759456235154,-217.07410389,0.00021686,2]
[388876429,1759456235164,-168.14178623,0.00021687,2]
[388876430,1759456235174,-1662.48595309,0.0002169,2]
[388876431,1759456235184,-168.14178623,0.00021692,2]
[388876432,1759456235195,-1543.96520246,0.00021692,2]
[388876433,1759456235204,-638.18102773,0.00021693,2]
[388876434,1759456235214,-161.60108868,0.00021695,2]
[388876435,1759456235225,-32865.28190591,0.00021698,2]
[388876436,1759456235235,-500.0,0.000217,7]
[388876437,1759456235245,-200.0,0.00021715,2]
[388876438,1759456235254,-168.0,0.00021717,2]
[388876439,1759456235263,-656.4391526,0.0002174,2]
[388876440,1759456235273,-281.10047687,0.00021773,2]
[388876441,1759456235282,-1000.0,0.00021773,2]